fUST/lending_fUST_20250725
["ID","MTS","AMOUNT","RATE_DAILY","PERIOD"]
[374685817,1753413049995,-2590.99,0.00020132,2]
[374685818,1753413050005,-460.0,0.00020132,2]
[374685819,1753413050015,-460.0,0.00020132,2]
[374685820,1753413050025,-168.0,0.0002015,2]
[374685821,1753413050035,-160.0,0.00020153,2]
[374685822,1753413050045,-257.788999,0.00020187,2]
[374685823,1753413050056,-150.0,0.00020193,2]
[374685824,1753413050066,-150.064,0.00020193,2]
[374685825,1753413050076,-150.138,0.00020193,2]
[374685826,1753413050086,-150.0,0.00020193,2]
[374685827,1753413050096,-150.0,0.00020193,2]
[374685828,1753413050106,-150.085,0.00020193,2]
[374685829,1753413050119,-648.0,0.00020193,2]
[374685830,1753413050129,-1022.0,0.00020242,2]
[374685831,1753413050139,-901.0,0.00020242,2]
[374685832,1753413050150,-500.0,0.0002026,2]
[374685833,1753413050161,-168.0,0.00020274,2]
[374685834,1753413050171,-3563.69170354,0.00020279,3]
[374685835,1753413050180,-168.0,0.00020313,2]
[374685836,1753413050192,-168.0,0.00020314,2]
[374685837,1753413050201,-168.0,0.00020323,2]
[374685838,1753413050211,-933.77,0.000204,2]
[374685839,1753413050222,-460.0,0.00020405,2]
[374685840,1753413050231,-460.0,0.00020405,2]
[374685841,1753413050241,-460.0,0.00020405,2]
[374685842,1753413050251,-460.0,0.00020405,2]
[374685843,1753413050262,-534.09,0.00020405,2]
[374685844,1753413050271,-3269.13,0.00020405,2]
[374685845,1753413050281,-460.0,0.00020405,2]
[374685846,1753413050291,-2004.64,0.00020405,2]
[374685847,1753413050302,-460.0,0.00020405,2]
[374685848,1753413050313,-460.0,0.00020405,2]
[374685849,1753413050323,-460.0,0.00020405,2]
[374685850,1753413050333,-460.0,0.00020405,2]
[374685851,1753413050343,-1273.31,0.00020405,2]
[374685852,1753413050354,-495.47,0.00020405,2]
[374685853,1753413050364,-1322.49,0.00020405,2]
[374685854,1753413050374,-623.94,0.00020405,2]
[374685855,1753413050385,-460.0,0.00020405,2]
[374685856,1753413050395,-460.0,0.00020405,2]
[374685857,1753413050405,-1123.15,0.00020405,2]
[374685858,1753413050414,-460.0,0.00020406,2]
[374685859,1753413050425,-460.0,0.00020406,2]
[374685860,1753413050434,-460.0,0.00020406,2]
[374685861,1753413050445,-460.0,0.00020406,2]
[374685862,1753413050455,-460.0,0.00020406,2]
[374685863,1753413050465,-460.0,0.00020406,2]
[374685864,1753413050474,-460.0,0.00020406,2]
[374685865,1753413050484,-811.88,0.00020406,2]
[374685866,1753413050494,-460.0,0.00020406,2]
[374685867,1753413050504,-485.53,0.00020406,2]
[374685868,1753413050515,-682.55,0.00020406,2]
[374685869,1753413050525,-471.98075307,0.00020406,2]
[374685870,1753413050534,-1105.84,0.00020406,2]
[374685871,1753413050544,-460.0,0.00020406,2]
[374685872,1753413050554,-460.0,0.00020406,2]
[374685873,1753413050564,-1999.76,0.00020406,2]
[374685874,1753413050575,-460.0,0.00020406,2]
[374685875,1753413050585,-460.0,0.00020406,2]
[374685876,1753413050596,-775.94,0.00020406,2]
[374685877,1753413050607,-460.0,0.00020406,2]
[374685878,1753413050617,-572.18,0.00020406,2]
[374685879,1753413050627,-460.0,0.00020406,2]
[374685880,1753413050636,-1380.02,0.00020406,2]
[374685881,1753413050646,-508.82,0.00020406,2]
[374685882,1753413050657,-460.0,0.00020406,2]
[374685883,1753413050668,-593.98,0.00020406,2]
[374685884,1753413050679,-1059.98,0.00020406,2]
[374685885,1753413050691,-572.37,0.00020406,2]
[374685886,1753413050702,-499.64,0.00020406,2]
[374685887,1753413050712,-1304.1,0.00020406,2]
[374685888,1753413050722,-460.0,0.00020406,2]
[374685889,1753413050732,-838.96,0.00020406,2]
[374685890,1753413050742,-631.7,0.00020406,2]
[374685891,1753413050751,-1408.64,0.00020406,2]
[374685892,1753413050761,-460.0,0.00020406,2]
[374685893,1753413050770,-2590.99,0.00020406,2]
[374685894,1753413050780,-460.0,0.00020406,2]
[374685895,1753413050791,-460.0,0.00020406,2]
[374685896,1753413050801,-168.0,0.00020475,2]
[374685897,1753413050812,-1022.0,0.00020516,2]
[374685898,1753413050822,-901.0,0.00020516,2]
[374685899,1753413050832,-168.0,0.00020527,2]
[374685900,1753413050841,-174.8,0.00020541,3]
[374685901,1753413050853,-3563.69170354,0.00020555,3]
[374685902,1753413050862,-214.7599002,0.000206,3]
[374685903,1753413050873,-12627.2413641,0.000206,3]
[374685904,1753413050883,-2005.1941868,0.00020612,2]
[374685905,1753413050893,-189.73358342,0.00020612,2]
[374685906,1753413050903,-168.0,0.00020626,2]
[374685907,1753413050914,-735.094047,0.00020641,8]
[374685908,1753413050923,-178.2667198,0.00020676,2]
[374685909,1753413050934,-356.5334396,0.00020676,2]
[374685910,1753413050944,-225.95,0.00020679,2]
[374685911,1753413050953,-460.0,0.00020679,2]
[374685912,1753413050965,-460.0,0.00020679,2]
[374685913,1753413050982,-566.28420752,0.00020679,2]
[374685914,1753413050991,-534.09,0.00020679,2]
[374685915,1753413051001,-3269.13,0.00020679,2]
[374685916,1753413051012,-565.64442134,0.00020679,2]
[374685917,1753413051022,-460.0,0.00020679,2]
[374685918,1753413051032,-460.0,0.00020679,2]
[374685919,1753413051042,-460.0,0.00020679,2]
[374685920,1753413051052,-460.0,0.00020679,2]
[374685921,1753413051064,-1273.31,0.00020679,2]
[374685922,1753413051075,-495.47,0.00020679,2]
[374685923,1753413051085,-1322.49,0.00020679,2]
[374685924,1753413051095,-623.94,0.00020679,2]
[374685925,1753413051104,-460.0,0.00020679,2]
[374685926,1753413051114,-460.0,0.00020679,2]
[374685927,1753413051126,-617.34148475,0.00020679,2]
[374685928,1753413051219,-505.80851525,0.00020679,2]
[374685929,1753413051229,-460.0,0.0002068,2]
[374685930,1753413051238,-152.942697,0.0002068,2]
[374685931,1753413051248,-460.0,0.0002068,2]
[374685932,1753413051258,-460.0,0.0002068,2]
[374685933,1753413051268,-460.0,0.0002068,2]
[374685934,1753413051277,-460.0,0.0002068,2]
[374685935,1753413051286,-460.0,0.0002068,2]
[374685936,1753413051297,-460.0,0.0002068,2]
[374685937,1753413051308,-811.88,0.0002068,2]
[374685938,1753413051318,-460.0,0.0002068,2]
[374685939,1753413051328,-485.53,0.0002068,2]
[374685940,1753413051338,-682.55,0.0002068,2]
[374685941,1753413051347,-1105.84,0.0002068,2]
[374685942,1753413051356,-362.68948405,0.0002068,2]
[374685943,1753413051366,-460.0,0.0002068,2]
[374685944,1753413051375,-1999.76,0.0002068,2]
[374685945,1753413051385,-460.0,0.0002068,2]
[374685946,1753413051395,-460.0,0.0002068,2]
[374685947,1753413051404,-775.94,0.0002068,2]
[374685948,1753413051413,-460.0,0.0002068,2]
[374685949,1753413051423,-572.18,0.0002068,2]
[374685950,1753413051433,-460.0,0.0002068,2]
[374685951,1753413051444,-1380.02,0.0002068,2]
[374685952,1753413051453,-508.82,0.0002068,2]
[374685953,1753413051463,-460.0,0.0002068,2]
[374685954,1753413051474,-593.98,0.0002068,2]
[374685955,1753413051485,-1059.98,0.0002068,2]
[374685956,1753413051495,-572.37,0.0002068,2]
[374685957,1753413051506,-499.64,0.0002068,2]
[374685958,1753413051516,-1304.1,0.0002068,2]
[374685959,1753413051525,-460.0,0.0002068,2]
[374685960,1753413051535,-838.96,0.0002068,2]
[374685961,1753413051544,-631.7,0.0002068,2]
[374685962,1753413051553,-1408.64,0.0002068,2]
[374685963,1753413051565,-460.0,0.0002068,2]
[374685964,1753413051574,-2590.99,0.0002068,2]
[374685965,1753413051583,-460.0,0.0002068,2]
[374685966,1753413051593,-460.0,0.0002068,2]
[374685967,1753413051602,-151.0,0.0002069,2]
[374685968,1753413051611,-260.0,0.00020701,2]
[374685969,1753413051620,-1022.0,0.0002079,2]
[374685970,1753413051630,-901.0,0.0002079,2]
[374685971,1753413051638,-806.63074411,0.00020793,2]
[374685972,1753413051648,-3563.69170354,0.00020831,4]
[374685973,1753413051657,-365.47651421,0.00020868,2]
[374685974,1753413051669,-2351.0,0.00020932,2]
[374685975,1753413051679,-460.0,0.00020953,2]
[374685976,1753413051688,-460.0,0.00020953,2]
[374685977,1753413051697,-534.09,0.00020953,2]
[374685978,1753413051706,-3269.13,0.00020953,2]
[374685979,1753413051716,-460.0,0.00020953,2]
[374685980,1753413051725,-460.0,0.00020953,2]
[374685981,1753413051734,-460.0,0.00020953,2]
[374685982,1753413051743,-460.0,0.00020953,2]
[374685983,1753413051752,-1273.31,0.00020953,2]
[374685984,1753413051761,-495.47,0.00020953,2]
[374685985,1753413051769,-1322.49,0.00020953,2]
[374685986,1753413051778,-623.94,0.00020953,2]
[374685987,1753413051788,-460.0,0.00020953,2]
[374685988,1753413051797,-460.0,0.00020953,2]
[374685989,1753413051808,-1123.15,0.00020953,2]
[374685990,1753413051817,-460.0,0.00020954,2]
[374685991,1753413051827,-460.0,0.00020954,2]
[374685992,1753413051836,-460.0,0.00020954,2]
[374685993,1753413051846,-460.0,0.00020954,2]
[374685994,1753413051855,-460.0,0.00020954,2]
[374685995,1753413051863,-460.0,0.00020954,2]
[374685996,1753413051873,-460.0,0.00020954,2]
[374685997,1753413051882,-811.88,0.00020954,2]
[374685998,1753413051891,-432.65351352,0.00020954,2]
[374685999,1753413051901,-485.53,0.00020954,2]
[374686000,1753413051911,-682.55,0.00020954,2]
[374686001,1753413051920,-1105.84,0.00020954,2]
[374686002,1753413051930,-209.60795151,0.00020954,2]
[374686003,1753413051939,-1999.76,0.00020954,2]
[374686004,1753413051949,-460.0,0.00020954,2]
[374686005,1753413051958,-460.0,0.00020954,2]
[374686006,1753413051969,-775.94,0.00020954,2]
[374686007,1753413051978,-460.0,0.00020954,2]
[374686008,1753413051988,-572.18,0.00020954,2]
[374686009,1753413051998,-576.99425808,0.00020954,2]
[374686010,1753413052007,-1380.02,0.00020954,2]
[374686011,1753413052017,-508.82,0.00020954,2]
[374686012,1753413052026,-256.28472357,0.00020954,2]
[374686013,1753413052036,-593.98,0.00020954,2]
[374686014,1753413052046,-1059.98,0.00020954,2]
[374686015,1753413052056,-572.37,0.00020954,2]
[374686016,1753413052068,-499.64,0.00020954,2]
[374686017,1753413052079,-1304.1,0.00020954,2]
[374686018,1753413052089,-460.0,0.00020954,2]
[374686019,1753413052099,-838.96,0.00020954,2]
[374686020,1753413052111,-631.7,0.00020954,2]
[374686021,1753413052124,-1408.64,0.00020954,2]
[374686022,1753413052134,-460.0,0.00020954,2]
[374686023,1753413052144,-2590.99,0.00020954,2]
[374686024,1753413052153,-460.0,0.00020954,2]
[374686025,1753413052164,-460.0,0.00020954,2]
[374686026,1753413052174,-174.8,0.00020996,3]
[374686027,1753413052214,-3000.0,0.00021,2]
[374686028,1753413052224,-154.094668,0.00021,3]
[374686029,1753413052234,-150.0,0.00021,5]
[374686030,1753413052243,-1002.502819,0.00021,2]
[374686031,1753413052253,-3000.0,0.0002101,2]
[374686032,1753413052262,-3000.0,0.0002102,2]
[374686033,1753413052272,-258.60328844,0.0002103,2]
[374686034,1753413052281,-3000.0,0.0002103,2]
[374686035,1753413052291,-3000.0,0.0002104,2]
[374686036,1753413052300,-3000.0,0.0002105,2]
[374686037,1753413052314,-151.0,0.0002105,2]
[374686038,1753413052324,-151.0,0.0002105,2]
[374686039,1753413052334,-151.0,0.0002105,2]
[374686040,1753413052343,-151.0,0.0002105,2]
[374686041,1753413052352,-3000.0,0.0002106,2]
[374686042,1753413052362,-1022.0,0.00021064,2]
[374686043,1753413052372,-901.0,0.00021064,2]
[374686044,1753413052381,-3000.0,0.0002107,2]
[374686045,1753413052391,-3000.0,0.0002108,2]
[374686046,1753413052400,-151.0,0.0002108,2]
[374686047,1753413052410,-151.0,0.0002108,2]
[374686048,1753413052420,-151.0,0.0002108,2]
[374686049,1753413052429,-151.0,0.0002108,2]
[374686050,1753413052439,-3000.0,0.0002109,2]
[374686051,1753413052449,-3000.0,0.000211,2]
[374686052,1753413052459,-151.0,0.000211,2]
[374686053,1753413052468,-151.0,0.000211,2]
[374686054,1753413052477,-151.0,0.000211,2]
[374686055,1753413052487,-643.0,0.000211,2]
[374686056,1753413052498,-3563.69170354,0.00021107,4]
[374686057,1753413052508,-3000.0,0.0002111,2]
[374686058,1753413052517,-3000.0,0.0002112,2]
[374686059,1753413052527,-3000.0,0.0002113,2]
[374686060,1753413052536,-3000.0,0.0002114,2]
[374686061,1753413052547,-151.0,0.0002114,2]
[374686062,1753413052561,-151.0,0.0002114,2]
[374686063,1753413052570,-151.0,0.0002114,2]
[374686064,1753413052581,-151.0,0.0002114,2]
[374686065,1753413052590,-233.568959,0.0002114,2]
[374686066,1753413052600,-233.568959,0.0002114,2]
[374686067,1753413052609,-3000.0,0.0002115,2]
[374686068,1753413052618,-3000.0,0.0002116,2]
[374686069,1753413052628,-151.0,0.0002116,2]
[374686070,1753413052638,-229.107257,0.0002116,2]
[374686071,1753413052648,-151.0,0.0002116,2]
[374686072,1753413052658,-3000.0,0.0002117,2]
[374686073,1753413052667,-3000.0,0.0002118,2]
[374686074,1753413052678,-151.0,0.0002118,2]
[374686075,1753413052687,-151.0,0.0002118,2]
[374686076,1753413052696,-151.0,0.0002118,2]
[374686077,1753413052705,-151.0,0.0002118,2]
[374686078,1753413052715,-236.046436,0.0002118,2]
[374686079,1753413052725,-236.046436,0.0002118,2]
[374686080,1753413052734,-151.0,0.0002118,2]
[374686081,1753413052744,-151.0,0.0002118,2]
[374686082,1753413052753,-3000.0,0.0002119,2]
[374686083,1753413052763,-3000.0,0.000212,2]
[374686084,1753413052773,-3000.0,0.0002121,2]
[374686085,1753413052782,-197.831491,0.0002121,2]
[374686086,1753413052792,-197.831491,0.0002121,2]
[374686087,1753413052802,-3000.0,0.0002122,2]
[374686088,1753413052814,-460.0,0.00021227,2]
[374686089,1753413052824,-460.0,0.00021227,2]
[374686090,1753413052833,-534.09,0.00021227,2]
[374686091,1753413052842,-3269.13,0.00021227,2]
[374686092,1753413052852,-460.0,0.00021227,2]
[374686093,1753413052861,-460.0,0.00021227,2]
[374686094,1753413052871,-460.0,0.00021227,2]
[374686095,1753413052881,-460.0,0.00021227,2]
[374686096,1753413052891,-1273.31,0.00021227,2]
[374686097,1753413052900,-495.47,0.00021227,2]
[374686098,1753413052910,-1322.49,0.00021227,2]
[374686099,1753413052920,-623.94,0.00021227,2]
[374686100,1753413052929,-460.0,0.00021227,2]
[374686101,1753413052940,-460.0,0.00021227,2]
[374686102,1753413052949,-1123.15,0.00021227,2]
[374686103,1753413052959,-460.0,0.00021228,2]
[374686104,1753413052968,-151.0,0.00021228,2]
[374686105,1753413052978,-151.0,0.00021228,2]
[374686106,1753413052990,-460.0,0.00021228,2]
[374686107,1753413053000,-151.0,0.00021228,2]
[374686108,1753413053013,-460.0,0.00021228,2]
[374686109,1753413053021,-151.0,0.00021228,2]
[374686110,1753413053031,-166.903747,0.00021228,2]
[374686111,1753413053040,-460.0,0.00021228,2]
[374686112,1753413053051,-151.0,0.00021228,2]
[374686113,1753413053063,-460.0,0.00021228,2]
[374686114,1753413053073,-278.95014,0.00021228,2]
[374686115,1753413053081,-278.95014,0.00021228,2]
[374686116,1753413053091,-460.0,0.00021228,2]
[374686117,1753413053100,-460.0,0.00021228,2]
[374686118,1753413053109,-811.88,0.00021228,2]
[374686119,1753413053121,-431.694664,0.00021228,2]
[374686120,1753413053131,-431.694664,0.00021228,2]
[374686121,1753413053141,-485.53,0.00021228,2]
[374686122,1753413053151,-682.55,0.00021228,2]
[374686123,1753413053162,-1105.84,0.00021228,2]
[374686124,1753413053171,-1999.76,0.00021228,2]
[374686125,1753413053180,-460.0,0.00021228,2]
[374686126,1753413053190,-460.0,0.00021228,2]
[374686127,1753413053200,-775.94,0.00021228,2]
[374686128,1753413053210,-460.0,0.00021228,2]
[374686129,1753413053220,-572.18,0.00021228,2]
[374686130,1753413053230,-1380.02,0.00021228,2]
[374686131,1753413053239,-508.82,0.00021228,2]
[374686132,1753413053248,-593.98,0.00021228,2]
[374686133,1753413053258,-1059.98,0.00021228,2]
[374686134,1753413053267,-572.37,0.00021228,2]
[374686135,1753413053277,-499.64,0.00021228,2]
[374686136,1753413053286,-1304.1,0.00021228,2]
[374686137,1753413053296,-460.0,0.00021228,2]
[374686138,1753413053308,-838.96,0.00021228,2]
[374686139,1753413053318,-631.7,0.00021228,2]
[374686140,1753413053328,-1408.64,0.00021228,2]
[374686141,1753413053337,-460.0,0.00021228,2]
[374686142,1753413053346,-2590.99,0.00021228,2]
[374686143,1753413053357,-460.0,0.00021228,2]
[374686144,1753413053366,-460.0,0.00021228,2]
[374686145,1753413053375,-3000.0,0.0002123,2]
[374686146,1753413053385,-3000.0,0.0002124,2]
[374686147,1753413053394,-360.0,0.00021249,2]
[374686148,1753413053403,-3000.0,0.0002125,2]
[374686149,1753413053412,-250.0,0.00021255,2]
[374686150,1753413053421,-3000.0,0.0002126,2]
[374686151,1753413053431,-3000.0,0.0002127,2]
[374686152,1753413053440,-3000.0,0.0002128,2]
[374686153,1753413053449,-3000.0,0.0002129,2]
[374686154,1753413053458,-3000.0,0.000213,2]
[374686155,1753413053468,-5396.4307,0.0002131,2]
[374686156,1753413053478,-1022.0,0.00021338,2]
[374686157,1753413053488,-901.0,0.00021338,2]
[374686158,1753413053497,-166.6164911,0.00021342,2]
[374686159,1753413053506,-197.82851408,0.00021358,2]
[374686160,1753413053517,-3563.69170354,0.00021383,5]
[374686161,1753413053528,-154.094668,0.00021424,2]
[374686162,1753413053537,-174.8,0.0002145,4]
[374686163,1753413053547,-231.28369723,0.00021486,2]
[374686164,1753413053560,-2217.49909099,0.000215,2]
[374686165,1753413053569,-208.5998994,0.00021501,2]
[374686166,1753413053578,-460.0,0.00021501,2]
[374686167,1753413053588,-534.09,0.00021501,2]
[374686168,1753413053597,-3269.13,0.00021501,2]
[374686169,1753413053606,-460.0,0.00021501,2]
[374686170,1753413053616,-460.0,0.00021501,2]
[374686171,1753413053626,-460.0,0.00021501,2]
[374686172,1753413053636,-460.0,0.00021501,2]
[374686173,1753413053646,-1273.31,0.00021501,2]
[374686174,1753413053655,-495.47,0.00021501,2]
[374686175,1753413053665,-1322.49,0.00021501,2]
[374686176,1753413053674,-623.94,0.00021501,2]
[374686177,1753413053684,-460.0,0.00021501,2]
[374686178,1753413053694,-460.0,0.00021501,2]
[374686179,1753413053703,-1123.15,0.00021501,2]
[374686180,1753413053712,-460.0,0.00021502,2]
[374686181,1753413053722,-151.0,0.00021502,2]
[374686182,1753413053732,-460.0,0.00021502,2]
[374686183,1753413053741,-391.63539696,0.00021502,2]
[374686184,1753413053751,-460.0,0.00021502,2]
[374686185,1753413053761,-206.32213869,0.00021502,2]
[374686186,1753413053770,-460.0,0.00021502,2]
[374686187,1753413053780,-460.0,0.00021502,2]
[374686188,1753413053790,-811.88,0.00021502,2]
[374686189,1753413053800,-485.53,0.00021502,2]
[374686190,1753413053813,-682.55,0.00021502,2]
[374686191,1753413053822,-1105.84,0.00021502,2]
[374686192,1753413053832,-1999.76,0.00021502,2]
[374686193,1753413053842,-460.0,0.00021502,2]
[374686194,1753413053851,-460.0,0.00021502,2]
[374686195,1753413053861,-775.94,0.00021502,2]
[374686196,1753413053870,-460.0,0.00021502,2]
[374686197,1753413053880,-572.18,0.00021502,2]
[374686198,1753413053890,-1380.02,0.00021502,2]
[374686199,1753413053900,-508.82,0.00021502,2]
[374686200,1753413053910,-593.98,0.00021502,2]
[374686201,1753413053919,-1059.98,0.00021502,2]
[374686202,1753413053929,-572.37,0.00021502,2]
[374686203,1753413053939,-499.64,0.00021502,2]
[374686204,1753413053949,-1304.1,0.00021502,2]
[374686205,1753413053959,-460.0,0.00021502,2]
[374686206,1753413053969,-838.96,0.00021502,2]
[374686207,1753413053980,-631.7,0.00021502,2]
[374686208,1753413053989,-1408.64,0.00021502,2]
[374686209,1753413053998,-460.0,0.00021502,2]
[374686210,1753413054010,-2590.99,0.00021502,2]
[374686211,1753413054019,-460.0,0.00021502,2]
[374686212,1753413054029,-460.0,0.00021502,2]
[374686213,1753413054040,-151.0,0.00021526,2]
[374686214,1753413054050,-179.82017982,0.00021551,2]
[374686215,1753413054063,-1022.0,0.00021612,2]
[374686216,1753413054073,-901.0,0.00021612,2]
[374686217,1753413054084,-166.6164911,0.00021616,2]
[374686218,1753413054093,-3563.69170354,0.00021659,5]
[374686219,1753413054103,-877.72466876,0.00021739,2]
[374686220,1753413054114,-460.0,0.00021775,2]
[374686221,1753413054128,-534.09,0.00021775,2]
[374686222,1753413054138,-3269.13,0.00021775,2]
[374686223,1753413054147,-460.0,0.00021775,2]
[374686224,1753413054159,-411.50424786,0.00021775,2]
[374686225,1753413054169,-460.0,0.00021775,2]
[374686226,1753413054179,-460.0,0.00021775,2]
[374686227,1753413054190,-1273.31,0.00021775,2]
[374686228,1753413054203,-495.47,0.00021775,2]
[374686229,1753413054213,-1322.49,0.00021775,2]
[374686230,1753413054223,-623.94,0.00021775,2]
[374686231,1753413054233,-460.0,0.00021775,2]
[374686232,1753413054243,-348.69271453,0.00021775,2]
[374686233,1753413054253,-1123.15,0.00021775,2]
[374686234,1753413054262,-460.0,0.00021776,2]
[374686235,1753413054273,-460.0,0.00021776,2]
[374686236,1753413054285,-460.0,0.00021776,2]
[374686237,1753413054295,-460.0,0.00021776,2]
[374686238,1753413054305,-256.05160332,0.00021776,2]
[374686239,1753413054319,-811.88,0.00021776,2]
[374686240,1753413054328,-485.53,0.00021776,2]
[374686241,1753413054339,-682.55,0.00021776,2]
[374686242,1753413054349,-1105.84,0.00021776,2]
[374686243,1753413054358,-1999.76,0.00021776,2]
[374686244,1753413054368,-460.0,0.00021776,2]
[374686245,1753413054378,-460.0,0.00021776,2]
[374686246,1753413054389,-775.94,0.00021776,2]
[374686247,1753413054399,-460.0,0.00021776,2]
[374686248,1753413054408,-572.18,0.00021776,2]
[374686249,1753413054418,-1380.02,0.00021776,2]
[374686250,1753413054427,-508.82,0.00021776,2]
[374686251,1753413054437,-593.98,0.00021776,2]
[374686252,1753413054447,-1059.98,0.00021776,2]
[374686253,1753413054457,-572.37,0.00021776,2]
[374686254,1753413054466,-499.64,0.00021776,2]
[374686255,1753413054475,-1304.1,0.00021776,2]
[374686256,1753413054485,-460.0,0.00021776,2]
[374686257,1753413054495,-838.96,0.00021776,2]
[374686258,1753413054504,-631.7,0.00021776,2]
[374686259,1753413054514,-1408.64,0.00021776,2]
[374686260,1753413054524,-460.0,0.00021776,2]
[374686261,1753413054534,-2590.99,0.00021776,2]
[374686262,1753413054544,-460.0,0.00021776,2]
[374686263,1753413054553,-460.0,0.00021776,2]
[374686264,1753413054563,-460.0,0.00021797,2]
[374686265,1753413054573,-348.74880548,0.0002181,2]
[374686266,1753413054582,-4000.0,0.00021856,4]
[374686267,1753413054592,-1022.0,0.00021886,2]
[374686268,1753413054602,-901.0,0.00021886,2]
[374686269,1753413054613,-365.47651421,0.000219,2]
[374686270,1753413054622,-174.8,0.00021905,4]
[374686271,1753413054632,-500.0,0.00021917,2]
[374686272,1753413054642,-500.0,0.00021917,2]
[374686273,1753413054651,-500.0,0.00021917,2]
[374686274,1753413054661,-500.0,0.00021917,2]
[374686275,1753413054671,-500.0,0.00021917,2]
[374686276,1753413054680,-500.0,0.00021917,2]
[374686277,1753413054690,-500.0,0.00021917,2]
[374686278,1753413054699,-500.0,0.00021917,2]
[374686279,1753413054709,-500.0,0.00021917,2]
[374686280,1753413054719,-500.0,0.00021917,2]
[374686281,1753413054729,-500.0,0.00021917,2]
[374686282,1753413054739,-500.0,0.00021917,2]
[374686283,1753413054748,-500.0,0.00021917,2]
[374686284,1753413054758,-500.0,0.00021917,2]
[374686285,1753413054768,-500.0,0.00021917,2]
[374686286,1753413054778,-500.0,0.00021917,2]
[374686287,1753413054789,-500.0,0.00021917,2]
[374686288,1753413054799,-500.0,0.00021917,2]
[374686289,1753413054809,-500.0,0.00021917,2]
[374686290,1753413054818,-500.0,0.00021917,2]
[374686291,1753413054828,-500.0,0.00021917,2]
[374686292,1753413054838,-500.0,0.00021917,2]
[374686293,1753413054848,-500.0,0.00021917,2]
[374686294,1753413054858,-500.0,0.00021917,2]
[374686295,1753413054869,-500.0,0.00021917,2]
[374686296,1753413054879,-151.0,0.00021918,2]
[374686297,1753413054889,-150.0,0.00021918,2]
[374686298,1753413054899,-150.27717762,0.00021918,2]
[374686299,1753413054910,-3563.69170354,0.00021934,6]
[374686300,1753413054920,-3641.75332708,0.0002195,2]
[374686301,1753413054930,-2626.45,0.00022,7]
[374686302,1753413054940,-3965.77,0.00022,7]
[374686303,1753413054950,-36485.36,0.00022,2]
[374686304,1753413054960,-9084.4,0.00022,7]
[374686305,1753413054970,-151.0,0.00022,7]
[374686306,1753413054980,-288.653695,0.00022,7]
[374686307,1753413054990,-151.0,0.00022,7]
[374686308,1753413055000,-151.0,0.00022,7]
[374686309,1753413055010,-280.404748,0.00022,7]
[374686310,1753413055019,-151.0,0.00022,7]
[374686311,1753413055029,-214.7599002,0.00022,7]
[374686312,1753413055039,-151.0,0.00022,7]
[374686313,1753413055049,-151.0,0.00022,7]
[374686314,1753413055066,-151.0,0.00022,7]
[374686315,1753413055075,-151.0,0.00022,7]
[374686316,1753413055085,-1111.11,0.00022,2]